bitfinex/quotes_SOLUSD_20250722
["timestamp","ask_amount","ask_price","bid_price","bid_amount"]
[1753188895720,0.49541738,202.83,202.82,7.00198891]
[1753188895919,0.49541738,202.85,202.81,7.00198891]
[1753188896147,0.66,202.84,202.81,7.00198891]
[1753188896451,0.49541738,202.85,202.83,7.00198891]
[1753188896615,0.49541738,202.85,202.81,7.00198891]
[1753188896821,0.49541738,202.85,202.8,7.00198891]
[1753188897055,0.49541738,202.85,202.76,0.66]
[1753188897056,0.66,202.84,202.81,7.00198891]
[1753188897350,0.49541738,202.83,202.8,7.00198891]
[1753188897553,0.49541738,202.85,202.8,7.00198891]
[1753188897745,0.66,202.82,202.8,7.00198891]
[1753188898240,1.15541738,202.81,202.78,7.00198891]
[1753188898425,0.66,202.81,202.78,7.00198891]
[1753188898634,0.66,202.81,202.79,7.00198891]
[1753188899741,7.49740629,202.85,202.79,11.93315378]
[1753188899931,0.66,202.84,202.79,11.93315378]
[1753188900126,0.49541738,202.83,202.8,7.00198891]
[1753188900350,17.44468397,202.82,202.72,37.22]
[1753188900521,7.00198891,202.76,202.73,30.0]
[1753188900722,0.49541738,202.77,202.75,7.00198891]
[1753188900927,0.66,202.83,202.76,7.66198891]
[1753188901131,0.49541738,202.85,202.82,7.00198891]
[1753188901339,0.66,202.84,202.76,0.66]
[1753188901661,0.66,202.84,202.79,7.00198891]
[1753188901662,0.49541738,202.83,202.79,7.00198891]
[1753188901854,1.15541738,202.83,202.8,7.00198891]
[1753188902548,0.66,202.82,202.79,7.00198891]
[1753188902750,0.49541738,202.81,202.79,7.00198891]
[1753188903119,0.49541738,202.81,202.8,7.00198891]
[1753188903322,0.49541738,202.82,202.8,7.00198891]
[1753188903522,0.66,202.81,202.75,4.93218249]
[1753188903743,0.66,202.81,202.69,4.9336425]
[1753188903744,16.78468397,202.79,202.69,4.9336425]
[1753188904045,0.49541738,202.78,202.77,7.00198891]
[1753188904227,0.66,202.82,202.77,7.00198891]
[1753188904433,0.66,202.82,202.81,7.00198891]
[1753188904631,0.49541738,202.84,202.81,7.00198891]
[1753188904837,0.49541738,202.84,202.69,17.26774877]
[1753188904838,16.78468397,202.83,202.69,17.26774877]
[1753188905037,1.15541738,202.82,202.69,4.9336425]
[1753188905239,1.15541738,202.82,202.8,7.00198891]
[1753188905423,1.15541738,202.82,202.69,53.84774877]
[1753188905424,1.15541738,202.82,202.79,7.00198891]
[1753188905627,1.15541738,202.82,202.74,0.66]
[1753188905833,8.15740629,202.82,202.76,7.00198891]
[1753188906034,1.15541738,202.82,202.77,7.00198891]
[1753188906230,0.66,202.81,202.77,7.00198891]
[1753188906428,0.49541738,202.8,202.77,7.00198891]
[1753188906652,1.15541738,202.8,202.7,17.92689688]
[1753188906947,1.15541738,202.8,202.76,7.00198891]
[1753188907148,1.15541738,202.8,202.77,7.00198891]
[1753188907453,0.49541738,202.8,202.77,7.00198891]
[1753188907670,4.93049741,202.82,202.74,0.66]
[1753188907671,17.28010135,202.81,202.74,0.66]
[1753188907951,17.94010135,202.81,202.76,7.00198891]
[1753188908155,0.66,202.8,202.75,7.00198891]
[1753188908335,0.49541738,202.79,202.75,7.00198891]
[1753188908529,0.66,202.78,202.75,7.00198891]
[1753188908845,0.49541738,202.78,202.76,7.00198891]
[1753188909031,0.49541738,202.79,202.76,7.00198891]
[1753188909231,16.78468397,202.8,202.75,7.00198891]
[1753188909429,16.78468397,202.78,202.71,7.00198891]
[1753188909637,0.49541738,202.77,202.72,7.00198891]
[1753188909842,16.78468397,202.75,202.64,0.66]
[1753188910051,23.78667288,202.73,202.66,7.00198891]
[1753188910248,23.78667288,202.73,202.6,41.9597]
[1753188910249,16.78468397,202.69,202.63,7.03198891]
[1753188910434,1.15541738,202.68,202.63,0.03]
[1753188910751,8.15740629,202.68,202.63,0.03]
[1753188911271,0.49541738,202.68,202.66,7.00198891]
[1753188911430,0.49541738,202.68,202.63,7.03198891]
[1753188911431,17.44468397,202.68,202.63,7.03198891]
[1753188911630,17.94010135,202.68,202.63,0.03]
[1753188911848,0.49541738,202.67,202.65,7.00198891]
[1753188912156,0.49541738,202.69,202.66,7.00198891]
[1753188912355,5.42689815,202.78,202.68,7.00198891]
[1753188912560,0.66,202.76,202.67,0.66]
[1753188912745,0.49541738,202.75,202.71,7.00198891]
[1753188913059,1.15541738,202.76,202.73,7.00198891]
[1753188913369,0.49541738,202.76,202.73,7.00198891]
[1753188913537,1.15541738,202.76,202.72,7.00198891]
[1753188913854,0.66,202.75,202.72,7.00198891]
[1753188914055,0.66,202.75,202.68,4.93388592]
[1753188914056,24.94209026,202.74,202.67,7.00198891]
[1753188914229,0.66,202.73,202.7,7.00198891]
[1753188914430,0.49541738,202.75,202.66,0.49343728]
[1753188914634,0.49541738,202.75,202.65,17.93115716]
[1753188914635,17.44468397,202.74,202.7,7.00198891]
[1753188914835,0.49541738,202.73,202.72,7.00198891]
[1753188915062,16.78468397,202.74,202.71,7.00198891]
[1753188915264,16.78468397,202.74,202.65,17.27115716]
[1753188915265,23.78667288,202.72,202.64,4.93484702]
[1753188915447,16.78468397,202.7,202.63,7.03198891]
[1753188915754,1.15541738,202.71,202.63,0.03]
[1753188915755,16.78468397,202.68,202.63,0.03]
[1753188915952,16.78468397,202.66,202.63,0.03]
[1753188916158,0.49541738,202.65,202.63,0.03]
[1753188916346,7.49740629,202.65,202.63,0.03]
[1753188916534,0.66,202.64,202.63,0.03]
[1753188916738,0.49541738,202.65,202.63,0.03]
[1753188917360,17.49468397,202.64,202.63,0.03]
[1753188917565,17.49468397,202.64,202.58,0.03]
[1753188917566,4.93510339,202.63,202.58,0.03]
[1753188917756,7.00198891,202.59,202.58,0.03]
[1753188918067,16.78468397,202.58,202.49,7.00198891]
[1753188918361,16.78468397,202.54,202.49,7.00198891]
[1753188918561,0.49541738,202.53,202.52,7.00198891]
[1753188918748,0.71,202.53,202.48,7.00198891]
[1753188918945,0.49541738,202.52,202.49,7.00198891]
[1753188919350,0.49541738,202.57,202.51,7.00198891]
[1753188919553,0.49541738,202.57,202.54,7.00198891]
[1753188919734,0.71,202.56,202.52,7.00198891]
[1753188919941,16.78468397,202.54,202.49,7.00198891]
[1753188920140,0.49541738,202.53,202.5,7.00198891]
[1753188920352,0.49541738,202.53,202.46,4.9392348]
[1753188920353,0.49541738,202.53,202.51,7.00198891]
[1753188920668,0.49541738,202.56,202.52,7.00198891]
[1753188921158,0.49541738,202.56,202.53,7.00198891]
[1753188921839,0.49541738,202.57,202.52,7.00198891]
[1753188922039,0.49541738,202.57,202.54,7.00198891]
[1753188922362,0.55541738,202.58,202.56,7.00198891]
[1753188922552,0.06,202.58,202.5,1.20382716]
[1753188922863,0.06,202.58,202.57,7.00198891]
[1753188923250,0.06,202.58,202.57,0.71]
[1753188923465,0.06,202.58,202.57,7.71198891]
[1753188923654,12.70634692,202.67,202.62,7.00198891]
[1753188923655,0.06,202.67,202.62,7.00198891]
[1753188923963,0.06,202.67,202.66,7.00198891]
[1753188924354,0.06,202.67,202.66,7.71198891]
[1753188925872,0.06,202.67,202.66,12.64636175]
[1753188926539,1e-08,202.67,202.66,20.14178794]
[1753188926740,4.93120962,202.79,202.66,20.14178794]
[1753188926966,0.49541738,202.78,202.73,7.00198891]
[1753188927267,0.71,202.77,202.73,10.43331748]
[1753188927452,0.71,202.77,202.74,10.43331748]
[1753188927965,0.49541738,202.78,202.74,10.43331748]
[1753188928158,0.49541738,202.78,202.75,10.43331748]
[1753188928463,10.43331748,202.81,202.75,10.43331748]
[1753188928464,1.20541738,202.8,202.75,10.43331748]
[1753188928667,0.71,202.79,202.75,10.43331748]
[1753188928866,0.49541738,202.78,202.75,10.43331748]
[1753188929170,1.20541738,202.78,202.75,10.43331748]
[1753188929574,6.13700066,202.78,202.74,10.43331748]
[1753188930072,6.13700066,202.78,202.71,4.93301231]
[1753188930073,1.20541738,202.78,202.75,10.43331748]
[1753188930377,1.20541738,202.78,202.71,4.93301231]
[1753188930572,0.49541738,202.8,202.76,10.43331748]
[1753188930757,0.49541738,202.81,202.79,10.43331748]
[1753188931072,0.5,202.83,202.8,10.43331748]
[1753188931375,0.5,202.83,202.82,10.43331748]
[1753188931570,0.5,202.83,202.82,11.14331748]
[1753188931747,0.49541738,202.91,202.82,11.14331748]
[1753188931950,0.49541738,202.91,202.89,10.43331748]
[1753188932363,0.49541738,202.91,202.88,10.43331748]
[1753188932562,11.14331748,202.9,202.84,10.43331748]
[1753188932875,11.14331748,202.9,202.87,10.43331748]
[1753188932876,0.49541738,202.89,202.87,10.43331748]
[1753188933054,21.71273531,202.92,202.88,10.43331748]
[1753188933055,0.49541738,202.91,202.88,10.43331748]
[1753188933252,0.49541738,202.91,202.83,0.31]
[1753188933452,0.49541738,202.91,202.88,10.43331748]
[1753188933670,0.49541738,202.91,202.89,10.43331748]
[1753188934095,0.49541738,202.92,202.9,10.43331748]
[1753188934558,0.49541738,202.92,202.89,10.43331748]
[1753188934753,11.52118038,202.93,202.9,10.43331748]
[1753188935071,11.52118038,202.93,202.91,10.43331748]
[1753188935279,11.025763,202.93,202.91,10.43331748]
[1753188935482,11.025763,202.93,202.92,10.43331748]
[1753188935777,11.025763,202.93,202.91,10.43331748]
[1753188936075,0.49541738,202.92,202.86,4.92949407]
[1753188936249,0.49541738,202.92,202.9,10.43331748]
[1753188936453,11.025763,202.93,202.91,10.43331748]
[1753188936664,11.025763,202.93,202.92,10.43331748]
[1753188936876,11.025763,202.93,202.91,10.43331748]
[1753188937080,11.025763,202.93,202.92,10.43331748]
[1753188937477,11.025763,202.93,202.91,10.43331748]
[1753188937682,0.49541738,202.92,202.9,10.43331748]
[1753188937980,11.025763,202.93,202.91,10.43331748]
[1753188938161,11.025763,202.93,202.92,10.43331748]
[1753188939856,11.025763,202.93,202.92,15.36136794]
[1753188940665,11.025763,202.93,202.92,10.43331748]
[1753188940982,11.025763,202.93,202.92,15.36136794]
[1753188941171,11.025763,202.93,202.92,5.23805046]
[1753188941480,11.025763,202.93,202.92,15.36136794]
[1753188941663,11.025763,202.93,202.92,15.67136794]
[1753188942178,11.025763,202.93,202.92,15.36136794]
[1753188942669,11.025763,202.93,202.92,15.67136794]
[1753188942864,11.025763,202.93,202.92,5.23805046]
[1753188943074,11.025763,202.93,202.92,15.67136794]
[1753188943988,11.085763,202.93,202.92,15.67136794]
[1753188944572,11.085763,202.93,202.92,41.67136794]
[1753188944772,11.085763,202.93,202.92,15.36136794]
[1753188945289,11.085763,202.93,202.92,15.67136794]
[1753188947282,11.085763,202.93,202.92,5.23805046]
[1753188947588,11.085763,202.93,202.92,19.21109022]
[1753188947982,0.06,202.98,202.92,19.21109022]
[1753188947983,0.06,202.98,202.95,26.0]
[1753188948167,0.06,202.98,202.97,6.98651988]
[1753188948367,0.06,202.98,202.96,0.31]
[1753188948599,0.06,202.98,202.97,6.98651988]
[1753188949094,0.06,202.98,202.97,7.29651988]
[1753188949595,5.623886,203.0,202.99,26.0]
[1753188949799,10.0,203.23,202.99,26.0]
[1753188949800,0.49541738,203.19,203.08,26.0]
[1753188949997,0.49541738,203.22,203.18,6.98651988]
[1753188950304,2.56476964,203.27,203.19,13.97303976]
[1753188950517,2.56476964,203.27,203.26,13.97303976]
[1753188950687,0.72,203.36,203.26,50.99303976]
[1753188950869,0.72,203.36,203.19,26.0]
[1753188950870,0.72,203.36,203.3,6.98651988]
[1753188951174,0.72,203.36,203.19,26.0]
[1753188951366,5.63759711,203.36,203.11,4.5144768]
[1753188951568,6.98651988,203.34,203.27,6.98651988]
[1753188951767,0.72,203.33,203.29,6.98651988]
[1753188951964,0.72,203.33,203.31,6.98651988]
[1753188952170,0.72,203.32,203.24,37.16]
[1753188952363,0.49541738,203.31,203.19,0.4921502]
[1753188952587,0.72,203.3,203.19,5.41365224]
[1753188952892,0.72,203.33,203.29,6.98651988]
[1753188953095,1.21541738,203.32,203.26,6.98651988]
[1753188953393,0.72,203.35,203.3,10.37795136]
[1753188953570,1.21541738,203.34,203.2,0.49212598]
[1753188953769,0.72,203.37,203.31,10.37795136]
[1753188953981,0.49541738,203.36,203.32,10.37795136]
[1753188954178,1.21541738,203.36,203.33,10.37795136]
[1753188954393,0.49541738,203.36,203.33,10.37795136]
[1753188954695,0.72,203.35,203.33,10.37795136]
[1753188954885,0.49541738,203.38,203.34,10.37795136]
[1753188955095,0.72,203.37,203.34,10.37795136]
[1753188955280,1.21541738,203.36,203.34,10.37795136]
[1753188955987,0.72,203.35,203.34,10.37795136]
[1753188956293,0.72,203.35,203.32,10.37795136]
[1753188956492,0.72,203.35,203.33,10.37795136]
[1753188956791,1.21541738,203.34,203.25,42.09981082]
[1753188956974,0.72,203.33,203.29,10.37795136]
[1753188957173,0.72,203.33,203.26,30.0]
[1753188957174,1.21541738,203.36,203.32,10.37795136]
[1753188957370,1.21541738,203.36,203.34,10.37795136]
[1753188957371,0.72,203.35,203.34,10.37795136]
[1753188957580,6.13232578,203.38,203.34,10.37795136]
[1753188957780,0.72,203.37,203.34,10.37795136]
[1753188957978,1.21541738,203.36,203.34,10.37795136]
[1753188958371,1.21541738,203.36,203.35,10.37795136]
[1753188958790,1.21541738,203.36,203.34,10.37795136]
[1753188959170,27.88263533,203.35,203.17,12.30483374]
[1753188959373,10.37795136,203.32,203.26,10.37795136]
[1753188959594,1.21541738,203.31,203.26,10.37795136]
[1753188959783,1.21541738,203.31,203.25,10.37795136]
[1753188959784,0.72,203.3,203.25,10.37795136]
[1753188959987,4.9193231,203.28,203.25,10.37795136]
[1753188960182,4.9193231,203.28,203.17,37.1]
[1753188960183,4.91862159,203.31,203.27,10.37795136]
[1753188960384,4.91862159,203.31,203.16,26.0]
[1753188960385,26.0,203.24,203.0,10.0]
[1753188960581,26.0,203.21,203.15,30.0]
[1753188960889,10.37795136,203.16,203.0,10.37795136]
[1753188961088,16.78468397,203.14,203.0,10.37795136]
[1753188961269,16.78468397,203.14,203.09,10.37795136]
[1753188961270,1.21541738,203.13,203.09,10.37795136]
[1753188961474,10.37795136,203.2,203.12,10.37795136]
[1753188961699,27.16263533,203.15,203.01,4.92586572]
[1753188961998,27.16263533,203.15,202.91,11.5744]
[1753188961999,15.30163427,203.1,203.03,10.37795136]
[1753188962301,0.49541738,203.09,203.05,10.37795136]
[1753188962471,0.72,203.08,203.05,10.37795136]
[1753188962671,0.49541738,203.07,203.05,10.37795136]
[1753188963000,0.72,203.06,203.01,10.37795136]
[1753188963300,1.21541738,203.05,203.03,10.37795136]
[1753188963601,1.21541738,203.09,203.04,10.37795136]
[1753188963808,1.21541738,203.09,202.95,0.4927322]
[1753188963809,10.37795136,203.05,202.95,0.4927322]
[1753188963983,6.14055528,203.04,202.98,10.37795136]
[1753188964181,6.14055528,203.04,202.99,10.37795136]
[1753188964488,16.78468397,203.02,202.93,0.49278076]
[1753188964689,10.37795136,202.95,202.87,30.0]
[1753188964904,10.37795136,202.91,202.83,1.83138103]
[1753188965120,0.49541738,202.9,202.85,10.37795136]
[1753188965273,16.78468397,202.96,202.86,10.37795136]
[1753188965480,10.37795136,202.92,202.86,10.37795136]
[1753188965784,11.59336874,202.91,202.85,10.37795136]
[1753188965973,0.72,202.9,202.83,1.83138103]
[1753188966174,0.72,202.9,202.85,10.37795136]
[1753188966374,1.21541738,202.95,202.89,10.37795136]
[1753188966582,0.72,202.95,202.92,10.37795136]
[1753188966881,0.49541738,202.97,202.94,10.37795136]
[1753188967104,0.72,202.96,202.93,10.37795136]
[1753188967322,1.21541738,202.95,202.91,10.37795136]
[1753188967525,10.37795136,202.93,202.87,10.37795136]
[1753188967820,10.37795136,202.88,202.83,1.83138103]
[1753188968028,1.21541738,202.87,202.86,10.37795136]
[1753188968335,1.5007,202.97,202.88,0.03]
[1753188968529,0.06,203.05,202.88,0.03]
[1753188968530,0.72,203.02,202.96,10.37795136]
[1753188968726,0.72,203.02,202.9,26.0]
[1753188968929,0.06,203.03,203.01,10.37795136]
[1753188969133,0.06,203.03,203.02,10.37795136]
[1753188969830,0.72,203.17,203.05,26.0]
[1753188970121,0.49541738,203.23,203.16,10.37795136]
[1753188970301,27.03483661,203.24,203.22,10.37795136]
[1753188970496,20.03811923,203.24,203.23,10.37795136]
[1753188971912,20.03811923,203.24,203.23,15.29848474]
[1753188972112,20.03811923,203.24,203.08,2.0254377]
[1753188972113,20.03811923,203.24,203.14,10.37795136]
[1753188972333,20.03811923,203.24,203.23,10.37795136]
[1753188972917,20.75811923,203.24,203.21,10.37795136]
[1753188973134,1.21541738,203.23,203.19,10.37795136]
[1753188973321,1.21541738,203.23,203.22,10.37795136]
[1753188973322,0.49541738,203.23,203.22,10.37795136]
[1753188973499,17.50468397,203.23,203.18,10.37795136]
[1753188973704,16.78468397,203.21,203.1,37.86]
[1753188973909,1.21541738,203.22,203.18,10.37795136]
[1753188973910,0.49541738,203.2,203.18,10.37795136]
[1753188974108,0.72,203.19,203.16,10.37795136]
[1753188974414,5.4167068,203.2,203.09,2.02533797]
[1753188974415,1.21541738,203.18,203.09,2.02533797]
[1753188974599,1.21541738,203.18,203.16,10.37795136]
[1753188974800,20.75811923,203.24,203.14,10.37795136]
[1753188975096,0.49541738,203.23,203.22,10.37795136]
[1753188975299,1.21541738,203.23,203.2,10.37795136]
[1753188975499,1.21541738,203.23,203.09,2.02533797]
[1753188975500,16.78468397,203.14,203.09,2.02533797]
[1753188975697,16.78468397,203.1,203.04,10.37795136]
[1753188976017,16.78468397,203.07,203.02,10.37795136]
[1753188976203,1.21541738,203.06,203.02,10.37795136]
[1753188976403,0.72,203.05,203.01,10.37795136]
[1753188976603,0.49541738,203.05,202.93,37.94]
[1753188976836,0.72,203.04,203.0,10.37795136]
[1753188977129,0.49541738,203.03,202.95,0.71]
[1753188977319,0.49541738,203.06,203.02,10.37795136]
[1753188977503,0.49541738,203.06,203.04,10.37795136]
[1753188978117,6.12012689,203.06,203.04,10.37795136]
[1753188978324,0.49541738,203.08,202.96,4.92707922]
[1753188978497,0.49541738,203.08,203.04,10.37795136]
[1753188978702,1.19541738,203.08,203.04,10.37795136]
[1753188978923,0.7,203.07,203.03,10.37795136]
[1753188979232,1.19541738,203.06,203.0,10.37795136]
[1753188979539,1.19541738,203.06,203.02,10.37795136]
[1753188979900,0.49541738,203.1,203.05,10.37795136]
[1753188980119,0.49541738,203.11,203.08,10.37795136]
[1753188980326,0.49541738,203.09,203.01,26.0]
[1753188980501,0.7,203.18,203.08,10.37795136]
[1753188980711,10.87336874,203.17,203.11,10.37795136]
[1753188981008,0.7,203.16,203.11,10.37795136]
[1753188981206,16.78468397,203.12,203.0,5.59610541]
[1753188981407,0.49541738,203.11,203.06,10.37795136]
[1753188981617,0.7,203.1,203.06,10.37795136]
[1753188981828,0.7,203.1,203.0,5.59610541]
[1753188981829,0.49541738,203.09,203.08,10.37795136]
[1753188982130,0.49541738,203.09,203.07,10.37795136]
[1753188982316,0.49541738,203.09,203.08,10.37795136]
[1753188982838,6.11934273,203.09,203.04,10.37795136]
[1753188983004,5.41934273,203.09,203.05,10.37795136]
[1753188983206,0.7,203.08,203.05,10.37795136]
[1753188983430,0.49541738,203.07,202.98,37.98]
[1753188983729,0.49541738,203.07,202.98,42.90651819]
[1753188983932,0.49541738,203.07,203.04,10.37795136]
[1753188984123,0.49541738,203.07,203.05,10.37795136]
[1753188984323,0.49541738,203.07,202.98,42.90651819]
[1753188984324,0.49541738,203.08,203.06,10.37795136]
[1753188984629,16.78468397,203.07,202.98,37.98]
[1753188984834,0.49541738,203.06,203.03,10.37795136]
[1753188985002,0.49541738,203.06,203.05,10.37795136]
[1753188985205,0.49541738,203.07,203.05,10.37795136]
[1753188985822,1.19541738,203.07,202.98,42.90651408]
[1753188986021,1.19541738,203.07,202.98,37.98]
[1753188986236,16.78468397,203.06,202.98,37.98]
[1753188986441,5.42031272,203.05,203.02,10.37795136]
[1753188986737,16.78468397,203.02,202.91,0.67]
[1753188987042,1.19541738,203.01,202.98,10.37795136]
[1753188987336,4.92489534,203.05,203.0,10.37795136]
[1753188987515,0.49541738,203.03,203.0,10.37795136]
[1753188987705,0.49541738,203.03,203.01,10.37795136]
[1753188988637,0.49541738,203.04,203.0,10.37795136]
[1753188988810,0.49541738,203.04,203.01,10.37795136]
[1753188989716,0.7,203.03,202.96,0.03]
[1753188989918,0.49541738,203.02,203.0,10.37795136]
[1753188990225,0.49541738,203.05,203.01,10.37795136]
[1753188990434,0.49541738,203.04,203.02,10.37795136]
[1753188990930,0.49541738,203.07,203.02,10.37795136]
[1753188991121,0.7,203.06,203.02,10.37795136]
[1753188991316,16.78468397,203.04,203.0,10.37795136]
[1753188991530,1.19541738,203.03,202.99,10.37795136]
[1753188991710,0.7,203.02,202.98,10.37795136]
[1753188991915,1.19541738,203.01,202.97,10.37795136]
[1753188992124,0.49541738,203.01,202.97,10.37795136]
[1753188992319,16.78468397,203.0,202.96,0.03]
[1753188992523,1.19541738,202.99,202.96,0.03]
[1753188992929,0.49541738,202.99,202.96,0.03]
[1753188993129,0.49541738,202.99,202.98,10.37795136]
[1753188993322,0.49541738,203.02,202.98,10.37795136]
[1753188993522,1.19541738,203.02,202.96,0.03]
[1753188993832,0.49541738,203.02,203.0,10.37795136]
[1753188994009,0.49541738,203.04,203.01,10.37795136]
[1753188994216,1.19541738,203.06,203.03,10.37795136]
[1753188994525,0.49541738,203.07,202.99,4.92635105]
[1753188994731,0.7,203.05,203.01,10.37795136]
[1753188994921,0.7,203.05,203.02,10.37795136]
[1753188995231,1.19541738,203.05,203.03,10.37795136]
[1753188995434,1.19541738,203.05,202.97,4.92683647]
[1753188995435,0.49541738,203.08,203.04,10.37795136]
[1753188995627,0.49541738,203.08,203.07,10.37795136]
[1753188995813,0.06,203.09,203.07,10.37795136]
[1753188996014,0.06,203.09,203.08,10.37795136]
[1753188996630,0.06,203.09,203.08,15.30211917]
[1753188997013,0.06,203.09,203.08,10.37795136]
[1753188998235,0.06,203.09,203.08,15.30211917]
[1753188998637,1e-08,203.09,203.08,15.97211917]
[1753188998821,0.49541738,203.2,203.08,28.77495548]
[1753188999025,0.49541738,203.2,203.16,10.37795136]
[1753188999518,7.75921738,203.21,203.18,10.37795136]
[1753189000640,0.49541738,203.22,203.19,10.37795136]
[1753189000842,0.49541738,203.22,203.14,0.67]
[1753189001050,0.49541738,203.22,203.2,10.37795136]
[1753189001260,0.49541738,203.22,203.1,17.72525848]
[1753189001261,17.48468397,203.21,203.1,17.90289019]
[1753189001556,0.49541738,203.2,203.16,10.37795136]
[1753189001856,0.7,203.19,203.15,10.37795136]
[1753189002151,1.19541738,203.18,203.15,10.37795136]
[1753189002357,27.86263533,203.17,203.1,10.37795136]
[1753189002522,16.78468397,203.15,203.08,37.68]
[1753189002844,10.37795136,203.09,202.99,0.67]
[1753189003029,0.49541738,203.08,203.03,10.37795136]
[1753189003215,0.49541738,203.08,202.99,0.67]
[1753189003216,0.7,203.07,203.04,10.37795136]
[1753189003420,0.49541738,203.1,203.06,10.37795136]
[1753189003616,0.49541738,203.1,203.07,10.37795136]
[1753189004028,0.49541738,203.1,203.08,10.37795136]
[1753189004228,0.7,203.1,203.01,0.67]
[1753189004441,0.49541738,203.09,203.01,0.67]
[1753189004628,0.49541738,203.09,203.04,10.37795136]
[1753189004832,0.49541738,203.09,203.05,10.37795136]
[1753189005027,0.7,203.11,203.07,10.37795136]
[1753189005234,0.7,203.11,203.02,4.92562309]
[1753189005235,0.49541738,203.1,203.06,10.37795136]
[1753189005433,0.49541738,203.1,203.07,10.37795136]
[1753189005622,0.49541738,203.12,203.08,10.37795136]
[1753189006048,0.49541738,203.12,203.09,10.37795136]
[1753189006245,0.7,203.11,203.03,0.67]
[1753189006541,1.19541738,203.11,203.07,10.37795136]
[1753189006920,0.7,203.1,203.02,42.56543349]
[1753189007121,0.49541738,203.09,203.06,10.37795136]
[1753189007932,0.49541738,203.11,203.07,10.37795136]
[1753189008135,16.78468397,203.16,203.1,10.37795136]
[1753189008440,0.49541738,203.15,203.11,10.37795136]
[1753189008818,0.49541738,203.15,203.05,0.71]
[1753189008819,0.49541738,203.16,203.13,10.37795136]
[1753189009022,0.67,203.22,203.15,10.37795136]
[1753189009242,0.49541738,203.23,203.2,10.37795136]
[1753189009837,0.49541738,203.23,203.15,0.71]
[1753189009838,0.49541738,203.23,203.18,10.37795136]
[1753189010146,10.37795136,203.19,203.12,10.37795136]
[1753189010366,4.07202348,203.59,203.18,41.51180544]
[1753189010524,6.20232954,203.56,203.53,10.0]
[1753189010724,6.20232954,203.56,203.55,30.75590272]
[1753189010949,0.67,203.63,203.55,30.75590272]
[1753189011144,0.67,203.63,203.6,20.37795136]
[1753189011329,40.07233581,203.61,203.6,20.37795136]
[1753189011529,40.74233581,203.61,203.6,20.37795136]
[1753189011753,40.07233581,203.61,203.6,20.37795136]
[1753189012127,0.11233581,203.61,203.6,20.37795136]
[1753189012458,40.65,203.61,203.6,10.0]
[1753189012832,0.67,203.61,203.6,10.0]
[1753189013332,40.69,203.61,203.6,10.0]
[1753189013527,57.47468397,203.61,203.6,9.28]
[1753189013738,40.71,203.61,203.56,9.28]
[1753189013941,22.36635658,203.6,203.55,9.28]
[1753189014136,22.36635658,203.6,203.48,30.91444021]
[1753189014137,16.78468397,203.58,203.53,9.28]
[1753189014439,16.78468397,203.58,203.53,19.65795136]
[1753189014644,17.45468397,203.57,203.56,9.28]
[1753189014842,11.04795136,203.57,203.53,9.28]
[1753189015027,16.78468397,203.59,203.5,9.28]
[1753189015028,10.37795136,203.54,203.5,9.28]
[1753189015224,0.67,203.53,203.5,9.28]
[1753189015426,0.67,203.52,203.48,9.28]
[1753189015735,10.37795136,203.5,203.46,9.28]
[1753189015945,0.67,203.53,203.48,10.37795136]
[1753189016139,40.71,203.52,203.5,9.28]
[1753189016346,0.67,203.51,203.5,9.28]
[1753189016830,40.67,203.51,203.5,9.28]
[1753189017024,0.67,203.55,203.5,9.28]
[1753189017233,12.27656648,203.64,203.42,10.37795136]
[1753189017234,0.67,203.59,203.53,9.28]
[1753189017433,39.98,203.58,203.57,9.28]
[1753189017635,39.98,203.58,203.57,19.65795136]
[1753189017843,0.67,203.62,203.57,9.28]
[1753189018042,39.98,203.58,203.57,9.28]
[1753189018239,0.67,203.65,203.62,9.28]
[1753189018440,39.96,203.64,203.62,9.28]
[1753189018652,0.67,203.64,203.62,9.28]
[1753189018854,16.78468397,203.7,203.62,9.28]
[1753189018855,2.56408904,203.76,203.63,10.37795136]
[1753189019026,35.4,203.76,203.73,9.28]
[1753189019231,10.37795136,203.74,203.71,9.28]
[1753189019454,0.67,203.73,203.67,9.28]
[1753189019633,0.67,203.73,203.69,9.28]
[1753189019950,39.94,203.72,203.69,9.28]
[1753189020161,0.67,203.71,203.67,9.28]
[1753189020327,10.37795136,203.68,203.67,9.28]
[1753189020660,35.4,203.76,203.72,9.28]